Cogmind - Beta 11 X5 @@@ ROGUE MODE // 2021.06.09 @ 16:29:25 Player: alice_fexa Result: Destroyed by D-53 Grenadier with Mini Grenade Launcher Performance ------------- Evolutions (0) 0 Regions Visited (2) 400 Robots Destroyed (18) 90 Value Destroyed (361) 361 Prototype IDs (6) 120 Alien Tech Used (0) 0 Bonus (0) 0 TOTAL SCORE: 971 Bonus ------- None Cogmind --------- Core Integrity 0/250 Matter 220/300 Energy 99/100 System Corruption 0% Temperature Cool (0) Movement Core (50) Location -10/Mines Parts ------- > --- POWER (1) -------- (None) > --- PROPULSION (2) --- (None) > --- UTILITY (2) ------ (None) > --- WEAPON (2) ------- (None) > --- INVENTORY (5) ---- Light Ion Engine Wheel High-capacity Matter Pod (200) EM Pulse Gun Light Cannon Peak State ------------ > --- POWER ------------ Ion Engine > --- PROPULSION ------- Light Treads Compact Wheel > --- UTILITY ---------- Small Storage Unit Improved Terrain Scanner > --- WEAPON ----------- EM Pulse Gun Particle Gun > --- INVENTORY -------- Light Ion Engine Light Treads Aluminum Leg Compact Wheel Medium Matter Pod EM Pulse Gun Grenade Launcher Grenade Launcher [Rating: 10] Favorites ----------- Power Light Ion Engine Engine Light Ion Engine Propulsion Light Treads Treads Light Treads Wheel Compact Wheel Utility Medium Storage Unit Device Structural Scanner Storage Medium Storage Unit Weapon Light Assault Rifle Energy Gun Medium Laser Ballistic Gun Light Assault Rifle Launcher Grenade Launcher Build | -11 -10 -10 ------- Run | Scr Mat Min Slots Evolved . | . . . Power . | . . . Propulsion . | . . . Utility . | . . . Weapon . | . . . Parts Attached 33 | 6 19 8 Power 3 | 1 1 1 Engine 3 | 1 1 1 Core . | . . . Reactor . | . . . Propulsion 8 | 2 4 2 Treads 5 | 1 2 2 Leg . | . . . Wheel 3 | 1 2 . Hover . | . . . Flight . | . . . Utility 9 | 1 7 1 Device 4 | . 4 . Storage 5 | 1 3 1 Processor . | . . . Hackware . | . . . Protection . | . . . Artifact . | . . . Weapon 13 | 2 7 4 Energy Gun 5 | 1 4 . Energy Cannon . | . . . Ballistic Gun 4 | 1 2 1 Ballistic Cannon . | . . . Launcher 4 | . 1 3 Special Weapon . | . . . Impact Weapon . | . . . Slashing Weapon . | . . . Piercing Weapon . | . . . Special Melee Weapon . | . . . Unidentified Prototypes . | . . . Parts Lost 13 | . 5 8 Power 2 | . 1 1 Propulsion 5 | . 1 4 Utility 1 | . 1 . Weapon 5 | . 2 3 Highest Loss Streak 6 | . 3 6 Average Slot Usage (%) 95 | . 95 97 Engine 13 | . 13 13 Treads 14 | . 14 15 Wheel 13 | . 13 12 Device 11 | . 9 14 Storage 14 | . 14 14 Energy Gun 10 | . 14 . Ballistic Gun 14 | . 13 17 Launcher 2 | . . 9 Naked Turns 1 | . . 1 Heaviest Build 48 | 13 17 48 Greatest Support 40 | 16 20 40 Greatest Overweight (x) 2 | . 1 2 Average Overweight (x) . | . . . Largest Inventory Capacity 20 | 8 10 20 Average Capacity 9 | 7 8 12 Most Carried 11 | 4 10 11 Average Carried 8 | 2 8 9 Final Capacity 10 | 8 10 5 Final Carried 10 | 4 10 5 Class Distribution -------------------- 100% | Mutant Dominant Class ---------------- Mutant | -10/Materials Mutant | -10/Mines Resources | -11 -10 -10 ----------- Run | Scr Mat Min Matter Collected 757 | 205 432 120 Remotely 93 | . 93 . Salvage Created 611 | . 503 108 Parts 32 | . 27 5 Haulers Intercepted 2 | . 2 . Recyclers Shooed 1 | . 1 . Parts Field Recycled . | . . . Retrieved Matter . | . . . Parts Self-Destructed . | . . . Prevented . | . . . Kills | -11 -10 -10 ------- Run | Scr Mat Min Combat Hostiles Destroyed 27 | . 10 17 Guns 6 | . 6 . AOE 20 | . 3 17 Classes Destroyed 8 | . 6 2 Worker 1 | . 1 . Tunneler 2 | . 1 1 Hauler 2 | . 2 . Recycler 1 | . . 1 Watcher 2 | . 2 . Swarmer 3 | . 3 . Grunt 7 | . 7 . Assembled 17 | . . 17 Best Kill Streak 19 | . 3 19 Combat Bots Only 17 | . 3 17 Max Kills in Single Turn 5 | . 2 5 Gunslinging . | . . . Exploded 5 | . 2 5 Melee . | . . . Uniques/NPCs Destroyed . | . . . Combat | -11 -10 -10 -------- Run | Scr Mat Min Damage Taken 1473 | . 553 920 Core 252 | . 64 188 Absorbed by Shields . | . . . Core Remaining (%) 100 | 100 . . Volleys Fired 65 | . 53 12 Largest 2 | . 2 1 Hottest 115 | . 115 30 Shots Fired 106 | . 94 12 Gun 94 | . 94 . Cannon . | . . . Launcher 12 | . . 12 Special . | . . . Kinetic 23 | . 23 . Thermal 36 | . 36 . Explosive 12 | . . 12 Electromagnetic 35 | . 35 . Robot Hit Streak 11 | . 11 8 Robot Miss Streak 5 | . 5 2 Penetration Max . | . . . Secondary Targets . | . . . Shots Hit Robots 61 | . 58 3 Core Hits 64 | . 25 39 Critical Kills . | . . . Critical Parts Destroyed . | . . . Critical Strikes 4 | . 4 . Burn 2 | . 2 . Corrupt 2 | . 2 . Melee Attacks . | . . . Impact . | . . . Slashing . | . . . Piercing . | . . . Sneak Attacks . | . . . Combat Hostiles . | . . . Follow-up Attacks . | . . . Damage Inflicted 1815 | . 912 903 Guns 707 | . 707 . Cannons . | . . . Explosions 1108 | . 205 903 Melee . | . . . Ramming . | . . . Kinetic 122 | . 122 . Thermal 479 | . 479 . Explosive 903 | . . 903 Electromagnetic 311 | . 311 . Impact . | . . . Slashing . | . . . Piercing . | . . . Highest Corruption . | . . . Average Corruption . | . . . Corruption Purged . | . . . Overload Shots . | . . . Overflow Damage 37 | . 9 28 Projectiles . | . . . Explosions 37 | . 9 28 Melee . | . . . Knockbacks . | . . . Impact . | . . . Kinetic . | . . . Secondary . | . . . Self-Inflicted Damage 200 | . 103 97 Shots 5 | . 2 3 Rammed . | . . . Targets Rammed . | . . . Kicked . | . . . Crushed . | . . . Highest Temperature 312 | . 312 15 Average Temperature 101 | . 103 11 Received Heat Transfer 248 | . 168 80 Effects 2 | . 2 . Interference 2 | . 2 . Siege Activations . | . . . Robots Corrupted 1 | . 1 . Combat Hostiles 1 | . 1 . Parts Fried . | . . . Impact Corruptions . | . . . Robots Melted . | . . . Combat Hostiles . | . . . Parts Melted 1 | . 1 . Heat Transferred 1125 | . 1125 . Parts Sabotaged . | . . . Parts Stolen . | . . . Parts Stripped . | . . . Power Chain Reactions 2 | . 2 . Missiles Intercepted . | . . . Alert | -11 -10 -10 ------- Run | Scr Mat Min Peak Influence 191 | . 191 5 Initial 3 | . . 3 Average 53 | . 78 2 Maximum Alert Level . | . . . Low Security (%) 100 | 100 100 100 Level 1 . | . . . Level 2 . | . . . Level 3 . | . . . Level 4 . | . . . Level 5 . | . . . High Security . | . . . Max Security . | . . . Squads Dispatched 2 | . 2 . Investigation 2 | . 2 . Extermination . | . . . Reinforcement . | . . . Assault . | . . . Garrison . | . . . Intercept . | . . . Construction Impeded . | . . . Haulers Reinforced . | . . . Cargo Convoy Interrupts . | . . . Stealth | -11 -10 -10 --------- Run | Scr Mat Min Distress Signals . | . . . Communications Jammed . | . . . Distress Signals . | . . . Times Spotted 36 | . 14 22 Peak Tracking Total 18 | . 3 18 Tactical Retreats 1 | . 1 . Traps | -11 -10 -10 ------- Run | Scr Mat Min Traps Triggered 1 | . 1 . Indirectly . | . . . Trap Hack Attempts . | . . . Triggered . | . . . Disarmed . | . . . Reprogrammed . | . . . Reused . | . . . Traps Extracted . | . . . Installed . | . . . Triggered . | . . . Machines | -11 -10 -10 ---------- Run | Scr Mat Min Machines Disabled 2 | . 2 . Max in Single Turn 1 | . 1 . Machines Sabotaged . | . . . Garrisons Compromised . | . . . Overloaded Fab Kills . | . . . Fab Network Shutdowns . | . . . Hacking | -11 -10 -10 --------- Run | Scr Mat Min Machines Accessed 8 | . 8 . Terminals 8 | . 8 . Fabricators . | . . . Repair Stations . | . . . Recycling Units . | . . . Scanalyzers . | . . . Garrison Access . | . . . Total Hacks 25 | . 25 . Successful 15 | . 15 . Failed 10 | . 10 . Catastrophic 1 | . 1 . Database Lockouts . | . . . Manual 19 | . 19 . Terminals 25 | . 25 . Fabricators . | . . . Repair Stations . | . . . Recycling Units . | . . . Scanalyzers . | . . . Garrison Access . | . . . Terminal Hacks 10 | . 10 . Prototype ID Bank 3 | . 3 . Unreport Threat 1 | . 1 . Locate Traps 3 | . 3 . Recall Investigation 1 | . 1 . Registered Components 1 | . 1 . Zone Layout 1 | . 1 . Fabricator Hacks . | . . . Repair Station Hacks . | . . . Recycling Unit Hacks . | . . . Scanalyzer . | . . . Garrison Access Hacks . | . . . Unauthorized Hacks 5 | . 5 . Terminals 5 | . 5 . Track 1 | . 1 . Botnet 4 | . 4 . Fabricators . | . . . Repair Stations . | . . . Recycling Units . | . . . Scanalyzers . | . . . Garrison Access . | . . . Data Cores Recovered . | . . . Used . | . . . Hacking Detections 8 | . 8 . Full Trace Events . | . . . Feedback Events . | . . . Feedback Blocked . | . . . Robot Schematics Acquired . | . . . Robots Built . | . . . Matter . | . . . Time . | . . . Total Robot Build Rating . | . . . Part Schematics Acquired . | . . . Parts Built . | . . . Matter . | . . . Time . | . . . Total Part Build Rating . | . . . Parts Repaired . | . . . Time . | . . . Parts Recycled . | . . . Recycled Matter . | . . . Retrieved Matter . | . . . Retrieved Components . | . . . Parts Scanalyzed . | . . . Part Schematics Acquired . | . . . Parts Damaged . | . . . Bothacking | -11 -10 -10 ------------ Run | Scr Mat Min Used RIF Installer . | . . . Robots Hacked . | . . . Non-combat . | . . . Combat . | . . . Robot Hacks Applied . | . . . Relay Couplers Released . | . . . Robots Rewired . | . . . Allies Hacked . | . . . Hacks Repelled . | . . . Allies | -11 -10 -10 -------- Run | Scr Mat Min Total Allies . | . . . Largest Group . | . . . Highest-Rated Group . | . . . Highest-Rated Ally . | . . . Total Orders . | . . . Ally Attacks . | . . . Total Damage . | . . . Kills . | . . . Allies Corrupted . | . . . Allies Melted . | . . . Intel | -11 -10 -10 ------- Run | Scr Mat Min Robot Analysis Total . | . . . Derelict Logs Recovered 2 | . . 2 Drone Launches . | . . . Drone Recoveries . | . . . Exploration | -11 -10 -10 ------------- Run | Scr Mat Min Turns Passed 1527 | 58 1031 438 Spaces Moved 1047 | 39 683 325 Core 3 | 1 . 2 Treads 177 | . 165 12 Legs . | . . . Wheels 867 | 38 518 311 Hover . | . . . Flight . | . . . Fastest Speed 50 | 50 95 50 Average Speed 113 | 98 114 115 Slowest Speed 260 | 100 160 260 Overloaded Moves . | . . . Propulsion Burnouts . | . . . Robots Hopped . | . . . Cave-ins Triggered . | . . . Exploration Rate (%) 64 | 3 98 91 Regions Visited 2 Branch Regions 1 Pre-discovered Areas 1 | . . 1 Known Exits Taken . | . . . Unknown Exits Taken 2 | 1 1 . Scrap Searched 3 | . . 3 Spaces Dug . | . . . Terrain Destroyed 31 | . 6 25 Melee . | . . . Projectile . | . . . AOE 31 | . 6 25 Terrain Rammed . | . . . Walls Destroyed . | . . . Machines Disabled . | . . . Actions | -11 -10 -10 --------- Run | Scr Mat Min Total 1278 | 55 847 376 Wait 94 | 7 58 29 Move 1045 | 38 682 325 Hop . | . . . Pick Up 23 | 4 18 1 Fast Attach 12 | 6 5 1 Attach 10 | . 5 5 Detach 1 | . 1 . Swap 11 | . 9 2 Drop 17 | . 16 1 Fire 65 | . 53 12 Melee . | . . . Ram . | . . . Kick . | . . . Crush . | . . . Escape Stasis . | . . . Rewire . | . . . Trap . | . . . Miscellaneous . | . . . Route ------- -11/Scrapyard -10/Materials (discovered 5 exits: [*Mat x3] / [*Min x2]) -10/Mines (discovered 3 exits: [*Mat x2] / [*Exi]) History --------- Turn | Location | Event 26 | -11/Scrapyard | Discovered new exit (range 16) 59 | -11/Scrapyard | Entered Materials 218 | -10/Materials | Discovered new exit (range 12) 355 | -10/Materials | Discovered new exit (range 16) 360 | -10/Materials | Build established: Mutant 493 | -10/Materials | Lost 3 parts (1p1n1u) 553 | -10/Materials | Discovered new exit (range 16) 867 | -10/Materials | Discovered new exit (range 4) 1059 | -10/Materials | Discovered new exit (range 15) 1090 | -10/Materials | Entered Mines 1143 | -10/Mines | Learned location of Storage (-7) 1143 | -10/Mines | Discovered new exit (range 10) 1258 | -10/Mines | Deemed a non-threat by the Exiles lab entrance 1258 | -10/Mines | Discovered new exit (range 5) 1357 | -10/Mines | Discovered new exit (range 10) 1378 | -10/Mines | Learned 4 Materials zone layouts 1455 | -10/Mines | Assembled infested the area 1460 | -10/Mines | Assisted by a Guerilla fighting off Assembled 1476 | -10/Mines | Core integrity fell below 50% 1510 | -10/Mines | Lost 6 parts (1p2n3w) 1513 | -10/Mines | Destroyed 17 combat bots 1526 | -10/Mines | Core integrity fell below 20% 1527 | -10/Mines | Released all parts (5) 1528 | -10/Mines | Destroyed by D-53 Grenadier with Mini Grenade Launcher Last Messages --------------- 01499_ U-05 Engineer lays Concrete. 01501_ K-01 Serf collects debris. 01502_ U-05 Engineer lays Concrete. 01504_ Acquired Lgt. Ion Engine. 01505_ R-06 Scavenger collects Imp. Terrain Scanner. 01507_ The unstable cave ceiling collapses. 01509_ R-06 Scavenger collects Lgt. Ion Engine. 01511_ The unstable cave ceiling collapses. 01512_ R-06 Scavenger collects Seismic Analyzer. 01513_ Acquired 2 matter. 01516_ R-06 Scavenger collects Med. Storage Unit. 01518_ C-30 ARC bursts open, deploying its payload. 01518_ D-53 Grenadier unfolds itself. 01521_ R-06 Scavenger destroyed. 01525_ Lgt. Treads destroyed. 01527_ Released Lgt. Assault Rifle. 01527_ Released Lgt. Ion Engine. 01527_ Released Hcp. Storage Unit. 01527_ Released Structural Scanner. 01527_ Released Grenade Launcher. Map ----- +----------------------------------------------------+ | #### ??#### #####??#### ####? | | ##### ### ####?### #### | | ##?### ###### ### | | ##??### ##### ## | | ##???### ######## ## ## | | ##???############## ## ## | | ###?????????????### #### ### | | ######???????????### #### ###### | | ######??????????#### ## ##### ######? | | ###??????????#### ######### ####???? | | ##?########### ######## ###????? | | ############## ##?????? | | #####%! ######## ###?????? | | ####%##### ############ #####?????? | | ###!##### ############# ####??????? | | ##?## ###### ##????????? | | ##?######### ###### ##????????? | | #####?######### ##????????? | | # ## #####??????#### ###### ##????????? | | # ### ###????????##### ###### ##????????? | | # ########????????### # #### #####?????? | | # #######?????????## ### #####?????? | | # ##?????????????### ##?????? | | # ##?????????????### *] # < ##?????? | | ##?????????????## ![! ##?????? | | ####??####??????#### [ @ ##?????? | | ####?#######????### ##?????? | | ####?### ##????## % #########?????? | | ####### ????## *! ##########?????? | | ##### ??### ###????????????? | | #### ### d ###?????????????? | | ##### ### # ###????????????? | | ##### d # ##????????????? | | #### ###????? #????? | | ## "% #####??? ##????? | | ## ### ! ##????? | | #### ##????? | | ######## # % ###????? | | #####?##### % ##?????? | | ######????## ###?????? | | ########???????## ####?????? | | #######?????????## ####??????? | | ##??????????????## ###???????? | | ##??????????????## ##???????? | | ##??????????????## ### ###???????? | | ##??????????????## #########???????? | | ##??????????????### #########????????? | | ##??????????????#### ####??????????????? | | ##???????????????### ###???????????????? | | ###????????????????## ##????????????????? | +----------------------------------------------------+ Best States ------------- Heat Dissipation 25 Energy Generation 10 Energy Capacity 250 Matter Stores 300 Matter Capacity 400 Sight Range 16 Terrain Scan Range 16 Terrain Scan Density 10 Evasion (%) 41 Recoil Reduction 2 Item Schematics ----------------- None Robot Schematics ------------------ None Fabricated ------------ Nothing Alien Tech Used ----------------- None Achievements -------------- None Challenges ------------ None Game ------ Seed RemoteUltimateInverter Manual? 0 Play Time 00:13:02 Cumulative 1040.5 hours Start 2021.06.09 @ 16:19:08 End 2021.06.09 @ 16:29:25 Sessions 1 Manual Loads 0 Difficulty Rogue Special Mode None Game No. 796 Rogue 756 Adventurer 40 Explorer 0 Win Type - Total 119 Types 60/4/33/2/1/4/13/1/1 Lore% 92 Gallery% 96 Achievement% 79 Wizard Run 0 Options --------- ASCII 0 Keyboard 0 Movement Numpad Keybinds 0 Fullscreen 0 Font 20/Terminus Map View 76x50 Tactical HUD 1 Map Filters NONE Filters NONE Steam 1 RUN: 019b4162-4dbb-4610-a9f3-b5f299574e15